bitfinex-derivatives/quotes_ETHF0:USTF0_20251103
["timestamp","ask_amount","ask_price","bid_price","bid_amount"]
[1762185838403,0.50204,3586.1,3585.6,0.50427241]
[1762185838699,0.50205,3586.0,3585.6,0.00216241]
[1762185839091,0.50203,3586.2,3585.7,0.50209]
[1762185839292,3.2078,3587.0,3586.1,3.2078]
[1762185839496,0.50195,3586.8,3586.2,0.50201]
[1762185839999,3.2078,3587.0,3586.9,0.50193]
[1762185840201,3.2078,3587.0,3586.5,3.2078]
[1762185840395,3.2078,3587.0,3585.6,1.52081241]
[1762185840396,0.50201,3586.3,3585.8,3.2078]
[1762185840599,0.502,3586.4,3585.8,3.2078]
[1762185840796,0.50201,3586.4,3585.8,3.2078]
[1762185841102,3.2078,3586.6,3585.8,3.2078]
[1762185841701,3.2078,3586.6,3585.9,0.50207]
[1762185841907,3.2078,3586.6,3585.8,3.2078]
[1762185842105,0.50207,3585.9,3585.8,3.2078]
[1762185842508,0.5021,3585.7,3585.6,0.00216241]
[1762185842807,3.7099,3585.7,3585.6,0.00216241]
[1762185843306,0.50222,3584.9,3584.7,3.2078]
[1762185843500,0.50226,3584.5,3584.3,3.2078]
[1762185843702,0.01282131,3584.8,3584.3,3.2078]
[1762185844001,3.2078,3585.3,3584.3,3.2078]
[1762185844002,0.07781839,3585.0,3584.3,3.2078]
[1762185844409,0.00242882,3585.0,3584.3,3.21012006]
[1762185844713,3.2078,3586.2,3585.3,0.50215]
[1762185844898,0.50207,3586.0,3585.3,3.2078]
[1762185845102,1.25511,3586.1,3585.3,3.2078]
[1762185845302,1.25532,3585.5,3584.5,3.2078]
[1762185845507,0.50224,3584.7,3584.5,3.2078]
[1762185845709,0.00204258,3584.7,3584.5,3.2078]
[1762185846009,0.00204258,3584.7,3584.1,3.21499]
[1762185846206,3.20984258,3584.7,3584.1,3.21499]
[1762185846407,0.50228,3584.5,3584.1,3.21499]
[1762185846804,0.50225,3584.6,3584.1,3.71731]
[1762185847106,0.00204258,3584.7,3584.5,3.2078]
[1762185847405,0.269,3585.6,3584.1,0.00719]
[1762185847406,3.2078,3585.5,3584.6,3.71005]
[1762185847610,0.269,3585.6,3584.7,0.50222]
[1762185847907,0.269,3585.6,3584.3,0.00232006]
[1762185847908,0.50227,3584.5,3584.3,0.00232006]
[1762185848306,0.32412093,3584.4,3584.3,0.00232006]
[1762185849005,0.00285545,3584.5,3584.3,0.00232006]
[1762185849205,0.50511545,3584.5,3584.3,0.00232006]
[1762185849400,0.00285545,3584.5,3584.3,0.00232006]
[1762185849801,0.00285545,3584.5,3584.4,0.50228]
[1762185849999,3.2078,3585.2,3584.3,0.00232006]
[1762185850202,0.50222,3584.8,3584.3,0.50460006]
[1762185850408,0.50235,3583.9,3583.7,3.2078]
[1762185850601,0.50233,3584.1,3583.7,3.2078]
[1762185850802,0.50234,3584.0,3583.8,0.11682697]
[1762185851008,0.44091962,3584.3,3583.8,0.11682697]
[1762185851213,0.50233,3584.0,3583.8,0.11682697]
[1762185851410,0.27211832,3584.0,3583.8,0.11886176]
[1762185851713,0.27242355,3583.9,3583.8,0.11886176]
[1762185852102,0.77445832,3584.0,3583.8,0.11886176]
[1762185852103,0.00311832,3584.0,3583.8,0.11886176]
[1762185852412,0.50229,3584.3,3583.8,0.11886176]
[1762185852607,0.50233,3584.0,3583.8,0.11886176]
[1762185853311,0.50575997,3584.0,3583.8,0.11886176]
[1762185853518,0.00341997,3584.0,3583.8,0.11886176]
[1762185854215,0.50574997,3584.0,3583.8,0.11886176]
[1762185854611,0.71334317,3583.9,3583.8,0.11886176]
[1762185854811,1.11404317,3583.9,3583.8,0.11886176]
[1762185855015,0.50247,3583.1,3582.9,3.2078]
[1762185855319,0.50249,3582.9,3582.7,0.21414691]
[1762185855516,0.50249,3582.9,3582.3,2.03615619]
[1762185855517,0.50251,3582.8,3582.3,2.03615619]
[1762185855705,3.2078,3583.0,3582.4,0.11685143]
[1762185855908,0.50249,3582.9,3582.8,0.17519426]
[1762185856116,0.81773336,3582.9,3582.8,0.00352869]
[1762185856419,0.81773336,3582.9,3582.8,0.25660868]
[1762185857207,0.2427,3582.4,3582.0,3.2078]
[1762185857422,0.50279,3580.7,3579.7,3.52078929]
[1762185857615,3.2078,3579.8,3577.6,3.4664]
[1762185857818,6.9856,3579.7,3579.3,0.2586]
[1762185858113,10.824,3579.6,3579.3,0.2586]
[1762185858313,0.00362125,3579.6,3579.3,0.25861111]
[1762185858513,0.97396486,3579.5,3579.3,0.25861111]
[1762185859116,4.18176486,3579.5,3579.3,0.25861111]
[1762185859317,0.97396486,3579.5,3579.4,1.715018]
[1762185859519,0.97396486,3579.5,3579.3,0.25861111]
[1762185859714,11.79896486,3579.5,3578.4,0.2586]
[1762185859914,0.5031,3578.5,3578.4,0.2586]
[1762185860124,3.2078,3578.6,3578.4,0.2586]
[1762185860421,3.22774695,3578.5,3578.4,2.34445958]
[1762185860719,3.22774695,3578.5,3578.4,2.34672826]
[1762185860919,3.2078,3579.4,3578.4,2.34672826]
[1762185860920,0.50308,3578.7,3578.4,2.34672826]
[1762185861216,0.00362125,3579.6,3577.6,0.2586]
[1762185861217,6.43554695,3578.5,3577.6,0.2586]
[1762185861416,6.43554695,3578.5,3575.3,12.58897]
[1762185861417,3.2078,3577.7,3576.0,3.69513823]
[1762185861620,3.71112,3577.0,3576.0,0.48733823]
[1762185861916,3.71112,3577.0,3575.0,0.2586]
[1762185861917,0.50357,3575.3,3575.0,0.2586]
[1762185862120,3.2078,3575.3,3574.0,0.2586]
[1762185862319,3.2078,3575.3,3574.0,0.26161437]
[1762185862320,3.2078,3574.2,3574.0,0.26161437]
[1762185862511,3.0885465,3575.2,3575.0,0.2586]
[1762185862710,0.00313599,3575.3,3575.0,0.2586]
[1762185862913,3.0885465,3575.2,3575.0,0.2586]
[1762185863112,3.0885465,3575.2,3575.1,1.28971788]
[1762185863313,3.0885465,3575.2,3575.0,0.2586]
[1762185863512,6.9928,3575.1,3575.0,0.2586]
[1762185863716,0.50371,3574.2,3574.0,0.26161437]
[1762185863918,3.2078,3574.3,3574.0,0.26161437]
[1762185864117,2.13968291,3574.1,3574.0,0.26161437]
[1762185864415,3.2078,3574.9,3574.2,1.8101492]
[1762185864416,3.2078,3574.4,3574.2,1.8101492]
[1762185864613,3.2078,3574.4,3574.0,3.79513056]
[1762185864614,3.2078,3574.4,3574.0,0.55935579]
[1762185864814,2.81927949,3574.3,3574.0,0.26161437]
[1762185865016,2.81927949,3574.3,3574.1,1.66144179]
[1762185865219,5.728,3575.7,3575.0,0.2586]
[1762185865421,3.2078,3576.3,3575.0,0.2586]
[1762185865621,2.95732206,3575.2,3575.0,0.2586]
[1762185866121,0.00252614,3575.2,3575.0,0.2586]
[1762185866327,2.95732206,3575.1,3574.0,0.26161437]
[1762185866527,3.2078,3574.4,3574.0,0.26161437]
[1762185867124,9.50360184,3574.3,3574.0,0.26161437]
[1762185867323,9.50360184,3574.3,3571.7,0.2586]
[1762185867324,3.2078,3573.7,3571.7,0.2586]
[1762185867524,3.2078,3573.0,3572.4,0.2586]
[1762185867718,3.2078,3572.6,3571.8,0.76935887]
[1762185867917,0.80614156,3574.1,3573.6,0.2586]
[1762185868220,2.791,3576.6,3574.8,0.2586]
[1762185868221,1.83755927,3575.4,3574.8,0.2586]
[1762185868421,1.84113061,3575.4,3574.9,3.2078]
[1762185868627,12.59047,3574.9,3573.6,0.00227777]
[1762185868820,14.8488,3575.3,3570.0,0.2586]
[1762185868821,17.06437,3573.1,3570.0,0.2586]
[1762185869127,15.1143,3573.6,3570.0,0.2586]
[1762185869128,3.2078,3570.9,3570.0,0.2586]
[1762185869422,3.2078,3571.9,3571.4,0.50409]
[1762185869622,3.2078,3572.1,3571.2,0.2586]
[1762185869826,3.2078,3572.1,3571.4,3.4664]
[1762185869827,3.2078,3571.5,3571.4,3.4664]
[1762185870323,1.91967846,3571.5,3571.4,4.46864417]
[1762185870514,1.91967846,3571.5,3571.2,0.0025626]
[1762185870718,3.2078,3572.0,3571.3,3.23263878]
[1762185871026,3.2078,3572.5,3572.0,0.2797]
[1762185871222,3.2078,3572.5,3572.4,0.2797]
[1762185871619,3.2078,3572.5,3572.4,6.97873878]
[1762185871814,3.2078,3574.1,3572.8,0.5039]
[1762185872022,0.00262472,3574.1,3573.2,3.2078]
[1762185872220,0.70462447,3574.0,3573.9,0.50375]
[1762185872414,0.70462447,3574.0,3573.9,0.00268172]
[1762185872623,0.70462447,3574.0,3573.9,3.46908172]
[1762185872920,0.70462447,3574.0,3571.6,3.2078]
[1762185873122,0.50393,3572.7,3571.3,4.593]
[1762185873423,3.2078,3572.4,3570.8,3.2078]
[1762185873620,3.2078,3571.4,3570.1,4.14974573]
[1762185873822,3.2078,3571.0,3570.1,3.23487617]
[1762185874127,5.83606866,3570.9,3570.2,4.14974573]
[1762185874314,5.83606866,3570.9,3570.2,4.07534616]
[1762185874518,3.2078,3570.9,3570.3,4.14974573]
[1762185874717,3.2078,3570.5,3570.2,4.07534616]
[1762185875021,0.3529687,3570.4,3570.3,0.92115036]
[1762185875220,1.45224684,3571.6,3570.4,0.91710695]
[1762185875422,1.45224684,3571.6,3570.9,0.50417]
[1762185875726,3.2078,3571.9,3571.5,0.91710695]
[1762185875929,3.2078,3571.9,3571.6,0.50406]
[1762185876118,3.2078,3571.9,3571.6,3.46908172]
[1762185876326,6.9992,3571.8,3569.8,3.2078]
[1762185876519,3.21138015,3571.9,3570.2,0.91710695]
[1762185876727,3.2078,3570.3,3569.7,0.02801395]
[1762185876927,3.2078,3570.3,3568.8,0.2586]
[1762185877127,3.2078,3569.4,3568.8,0.2586]
[1762185877324,7.112,3570.8,3569.0,3.46908172]
[1762185877325,3.2078,3569.1,3569.0,3.46908172]
[1762185877621,3.24705172,3569.1,3569.0,3.46908172]
[1762185877821,3.24911825,3569.1,3569.0,0.0025496]
[1762185878018,3.24911825,3569.1,3567.2,0.6659]
[1762185878328,3.2078,3566.3,3565.2,0.01537485]
[1762185878627,3.2078,3566.3,3565.3,2.16927838]
[1762185878824,0.0880462,3569.1,3564.2,0.04880306]
[1762185878825,3.2078,3565.6,3564.2,0.04880306]
[1762185879025,3.2078,3565.6,3564.2,3.25660306]
[1762185879220,3.2078,3565.6,3564.2,0.05192105]
[1762185879221,3.2078,3564.8,3564.2,0.05192105]
[1762185879422,3.2078,3565.2,3564.3,0.91710695]
[1762185879621,0.83504327,3565.5,3564.9,3.2078]
[1762185879826,0.83504327,3565.5,3564.8,3.2078]
[1762185880026,2.92665979,3564.7,3564.4,0.91710695]
[1762185880225,0.52030242,3565.5,3564.5,0.91710695]
[1762185880525,3.2078,3567.0,3565.5,1.58300695]
[1762185880720,3.2078,3567.4,3567.0,0.6659]
[1762185880919,3.2078,3567.9,3567.2,0.50469]
[1762185881222,3.2078,3569.5,3568.5,0.6659]
[1762185881425,3.2078,3568.9,3568.5,1.58300695]
[1762185881626,0.39265468,3569.1,3568.6,0.91710695]
[1762185881824,3.2078,3569.1,3568.5,0.6659]
[1762185882132,0.48260227,3569.0,3568.5,0.6659]
[1762185882326,0.48260227,3569.0,3568.6,0.91710695]
[1762185882327,0.48592223,3569.0,3568.6,0.91710695]
[1762185882534,3.2078,3568.7,3568.6,0.91710695]
[1762185882731,3.2078,3568.7,3568.5,0.6692598]
[1762185882933,3.2078,3568.7,3567.0,0.6659]
[1762185882934,3.28631993,3568.7,3567.0,0.6659]
[1762185883131,3.2078,3568.2,3567.3,3.71247]
[1762185883331,3.2078,3568.2,3567.1,0.91710695]
[1762185883332,3.2078,3568.2,3567.7,0.50461]
[1762185883528,1.26799528,3568.1,3567.9,0.50458]
[1762185883726,1.26799528,3568.1,3567.8,0.91710695]
[1762185883927,0.00331996,3569.0,3568.5,0.6659]
[1762185884126,0.00331996,3569.0,3568.6,3.2078]
[1762185884332,0.50447,3568.8,3568.5,0.6659]
[1762185884534,3.2078,3568.6,3567.8,0.00230641]
[1762185884741,3.2078,3567.9,3567.0,0.6659]
[1762185884935,3.2078,3567.3,3566.1,3.2078]
[1762185885231,0.27498541,3567.8,3567.4,0.50466]
[1762185885438,3.2078,3568.4,3567.5,0.50464]
[1762185885629,3.2078,3568.4,3567.5,0.00265037]
[1762185886234,3.2078,3567.9,3567.5,0.00265037]
[1762185886630,0.11780136,3567.8,3567.5,0.00265037]
[1762185887033,0.11780136,3567.8,3566.1,3.2078]
[1762185887232,0.11780136,3567.8,3565.5,0.6659]
[1762185887233,3.2078,3566.2,3565.5,0.6659]
[1762185887431,3.2078,3565.8,3565.6,0.196498]
[1762185887633,3.2078,3565.8,3564.5,3.2078]
[1762185887836,0.1179732,3565.7,3564.1,3.2078]
[1762185888046,3.2078,3565.2,3564.6,0.78632271]
[1762185888236,3.2078,3565.6,3564.4,0.50508]
[1762185888433,3.2078,3564.8,3564.2,0.04881782]
[1762185888731,3.2078,3564.4,3564.0,0.6659]
[1762185889133,0.35410831,3564.3,3564.1,0.37381243]
[1762185889439,3.2078,3564.5,3564.1,0.00321687]
[1762185889646,0.00260945,3565.7,3564.1,0.3770293]
[1762185889846,3.2078,3565.0,3564.4,0.50509]
[1762185890146,0.00260945,3565.7,3565.6,0.50491]
[1762185890337,3.2078,3567.5,3566.1,0.50483]
[1762185890642,3.2078,3566.4,3565.2,3.2078]
[1762185890842,3.2078,3565.5,3564.4,3.2078]
[1762185891042,3.2078,3566.0,3564.4,3.2078]
[1762185891237,3.2078,3565.5,3564.5,0.0786808]
[1762185891440,3.2107553,3565.5,3564.5,0.0786808]
[1762185891647,0.0029553,3565.5,3564.6,3.2078]
[1762185891842,0.0029553,3565.5,3564.5,3.2864808]
[1762185892142,0.0029553,3565.5,3565.3,0.50496]
[1762185892348,3.2078,3566.9,3565.4,3.2078]
[1762185892536,3.2078,3566.9,3566.1,3.2078]
[1762185892735,3.2078,3567.4,3566.6,3.2078]
[1762185892941,3.2078,3567.5,3566.8,0.50474]
[1762185893142,3.2078,3567.6,3566.6,3.71256]
[1762185893447,3.21023033,3567.6,3566.6,3.21120411]
[1762185893637,1.8626666,3571.4,3566.6,3.21120411]
[1762185893638,3.2078,3568.4,3567.5,3.2078]
[1762185893837,3.2078,3568.9,3568.0,3.2078]
[1762185894051,3.2078,3568.5,3567.5,3.2078]
[1762185894446,3.2078,3568.5,3568.1,0.50456]
[1762185894742,0.00332986,3568.5,3567.9,3.2078]
[1762185894948,3.2078,3568.4,3567.5,3.2078]
[1762185895242,3.2078,3568.4,3567.2,1.0034]
[1762185895243,3.21112986,3568.5,3567.2,1.0034]
[1762185895439,3.21112986,3568.5,3567.4,3.2078]
[1762185895643,0.00332986,3568.5,3567.8,3.2078]
[1762185895837,3.2078,3569.9,3569.1,0.50441]
[1762185896038,3.2078,3570.4,3569.5,3.2078]
[1762185896241,3.2078,3570.3,3569.2,0.50439]
[1762185896437,3.2078,3570.3,3568.7,40.8]
[1762185896641,3.2078,3569.9,3569.0,3.2078]
[1762185896848,0.00304057,3569.9,3569.0,3.21040778]
[1762185897345,0.00304057,3569.9,3569.8,3.2078]
[1762185897545,0.00304057,3569.9,3569.2,3.2078]
[1762185897745,3.2078,3569.6,3569.0,0.00260778]
[1762185898449,0.00304057,3569.9,3569.8,1.0034]
[1762185898845,0.00304057,3569.9,3569.8,4.2112]
[1762185899144,3.2078,3569.6,3567.3,0.50466]
[1762185899444,3.2078,3567.9,3567.1,3.2078]
[1762185899849,0.50461,3567.8,3567.1,3.2078]
[1762185900046,3.2078,3567.9,3567.1,3.2078]
[1762185900345,3.2078,3568.8,3568.1,0.50456]
[1762185900551,3.2078,3568.8,3568.5,1.0034]
[1762185900944,3.2078,3569.6,3568.5,1.0034]
[1762185901144,3.2078,3569.2,3568.6,1.9515]
[1762185901850,0.00304057,3569.9,3569.0,3.2078]
[1762185902053,3.2078,3570.5,3569.8,4.2112]
[1762185902242,0.50426,3570.3,3569.8,1.0034]
[1762185902551,3.2078,3570.5,3570.0,0.50429]
[1762185902744,3.2078,3571.0,3570.1,3.2078]
[1762185902945,3.2078,3571.4,3571.1,1.0034]
[1762185903142,2.16219,3572.2,3571.3,26.46627]
[1762185903350,3.2078,3573.8,3572.4,1.0034]
[1762185903545,0.50388,3573.0,3572.6,3.2078]
[1762185903846,0.29180894,3572.9,3572.6,3.71172]
[1762185904047,3.2078,3574.3,3572.6,3.2078]
[1762185904244,3.2078,3574.3,3573.9,3.2078]
[1762185904245,0.003618,3574.3,3573.9,3.2078]
[1762185904544,3.2078,3575.9,3574.2,1.0034]
[1762185904753,3.2078,3575.9,3574.7,3.2078]
[1762185904952,3.2078,3575.9,3574.5,3.2078]
[1762185905251,3.2078,3576.2,3575.3,3.2078]
[1762185905444,4.2565666,3578.9,3575.3,3.2078]
[1762185905445,3.2078,3577.5,3575.6,0.9449]
[1762185905747,3.2078,3577.9,3576.3,3.2078]
[1762185905948,3.2078,3577.9,3576.7,3.71115]
[1762185906141,3.2078,3578.8,3577.6,3.2078]
[1762185906342,3.2078,3578.7,3577.6,3.2078]
[1762185906542,3.2078,3578.3,3577.6,0.00283914]
[1762185906747,0.00243805,3578.8,3577.6,0.00283914]
[1762185906748,0.00243805,3578.8,3577.6,0.50604914]
[1762185906941,0.00243805,3578.8,3577.8,3.2078]
[1762185907141,0.00243805,3578.8,3577.6,0.00283914]
[1762185907142,3.2078,3578.3,3577.6,0.00283914]
[1762185907348,0.2930132,3578.2,3577.6,0.00283914]
[1762185907745,3.2078,3578.3,3577.6,0.00283914]
[1762185907945,0.00243805,3578.8,3577.6,0.00283914]
[1762185908148,0.00243805,3578.8,3578.1,3.2078]
[1762185908347,0.00243805,3578.8,3578.5,3.2078]
[1762185908543,0.00243805,3578.8,3578.7,3.2078]
[1762185908747,0.00243805,3578.8,3578.5,3.2078]
[1762185909154,0.00243805,3578.8,3578.6,3.2078]
[1762185909550,0.00243805,3578.8,3578.1,3.2078]
[1762185909747,0.00243805,3578.8,3578.5,3.2078]
[1762185909948,3.2078,3578.7,3577.6,3.21063914]
[1762185910148,0.00243805,3578.8,3578.4,3.2078]
[1762185910352,3.21023805,3578.8,3577.6,0.00283914]
[1762185910552,3.2078,3578.0,3577.6,0.00283914]
[1762185910752,0.00243805,3578.8,3577.6,0.00283914]
[1762185910753,3.21023805,3578.8,3577.6,0.00283914]
[1762185910953,0.00243805,3578.8,3578.2,3.2078]
[1762185911152,3.805e-05,3578.8,3578.7,0.50307]
[1762185911351,0.025,3579.7,3578.6,3.2078]
[1762185911553,0.025,3579.7,3579.6,3.2078]
[1762185911756,0.025,3579.7,3579.1,3.71081]
[1762185911953,0.025,3579.7,3579.1,3.2078]
[1762185912156,0.025,3579.7,3578.7,3.2078]
[1762185912349,0.02787836,3579.7,3579.2,3.2078]
[1762185912652,0.02787836,3579.7,3579.6,3.2078]
[1762185913153,0.02787836,3579.7,3578.8,3.71085]
[1762185913354,0.02787836,3579.7,3579.2,3.2078]
[1762185913554,0.02787836,3579.7,3579.6,3.2078]
[1762185913751,0.50276,3581.0,3580.1,0.50287]
[1762185913952,3.71042,3582.0,3580.9,3.2078]
[1762185914148,3.2078,3581.8,3580.9,3.2078]
[1762185914351,0.50274,3581.1,3580.9,3.2078]
[1762185914549,0.5028,3580.7,3580.5,3.2078]
[1762185914756,3.2078,3580.6,3579.5,3.2078]
[1762185914950,3.2078,3580.6,3578.5,40.8]
[1762185914951,0.00261599,3580.7,3580.0,3.2078]
[1762185915151,1.599e-05,3580.7,3580.6,3.2078]
[1762185915351,3.2078,3581.8,3580.7,0.50279]
[1762185915552,3.2078,3581.8,3580.6,3.2078]
[1762185915758,0.50266,3581.7,3581.0,3.2078]
[1762185915958,3.2078,3582.4,3581.4,3.2078]
[1762185916352,6.23703079,3584.2,3582.3,3.2078]
[1762185916558,0.50244,3583.3,3582.3,3.2078]
[1762185916756,3.2078,3583.9,3582.8,3.2078]
[1762185916959,3.2078,3583.9,3583.2,3.2078]
[1762185917451,0.00295613,3583.9,3582.8,3.2078]
[1762185917655,0.025,3584.7,3583.7,3.2078]
[1762185917858,0.025,3584.7,3583.8,3.2078]
[1762185918157,1.25519,3585.8,3582.9,13.9282]
[1762185918158,3.2078,3585.4,3584.6,3.2078]
[1762185918460,3.2078,3585.6,3584.2,3.2078]
[1762185918656,3.2078,3584.4,3584.2,0.00200656]
[1762185918854,3.2078,3584.4,3582.6,1.1778]
[1762185919159,0.00298914,3585.6,3582.9,3.2078]
[1762185919160,3.2078,3584.2,3582.9,3.2078]
[1762185919358,3.2078,3583.8,3582.9,3.2078]
[1762185919553,3.2078,3583.3,3582.5,3.2078]
[1762185919760,0.00298914,3585.6,3583.1,3.2078]
[1762185919761,3.2078,3584.1,3583.1,3.2078]
[1762185920062,0.00298914,3585.6,3583.1,0.00212968]
[1762185920063,3.2078,3583.4,3583.1,0.00212968]
[1762185920461,3.2078,3583.4,3580.5,1.25703]
[1762185920462,3.2078,3583.0,3580.6,3.2078]
[1762185920659,3.2078,3583.1,3581.5,3.2078]
[1762185920856,3.2078,3583.0,3581.9,3.2078]
[1762185921057,3.2078,3583.0,3582.1,3.2078]
[1762185921265,3.2078,3583.9,3582.5,3.2078]
[1762185921460,0.00267004,3583.0,3582.7,3.2078]
[1762185921758,3.2078,3584.9,3582.7,3.2078]
[1762185921959,3.2078,3584.9,3583.5,3.2078]
[1762185922165,3.2078,3583.6,3582.0,3.2078]
[1762185922466,3.2078,3583.0,3581.6,3.2078]
[1762185922656,3.2078,3583.0,3582.0,3.2078]
[1762185922854,3.20978707,3583.0,3582.0,5.64455233]
[1762185923057,3.2078,3584.8,3582.9,3.2078]
[1762185923257,3.2078,3585.6,3584.3,3.2078]
[1762185923451,3.2078,3585.6,3584.7,3.2078]
[1762185923668,3.2078,3585.6,3584.3,3.2078]
[1762185923860,3.2078,3585.2,3583.9,3.2078]
[1762185924161,3.2078,3585.2,3583.9,0.00286918]
[1762185924162,3.2078,3584.6,3583.9,0.00286918]
[1762185924355,3.2078,3584.2,3583.9,0.00286918]
[1762185924559,3.2078,3584.2,3582.4,3.2078]
[1762185924862,3.2078,3583.7,3582.4,3.2078]
[1762185925364,0.00318795,3585.2,3583.3,3.2078]
[1762185925365,3.2078,3584.9,3583.3,3.2078]
[1762185925565,3.2078,3584.9,3583.9,3.2078]
[1762185925762,3.2078,3585.1,3584.3,3.2078]
[1762185925961,3.2078,3584.7,3583.5,3.2078]
[1762185926160,0.50227,3584.5,3583.7,0.50236]
[1762185926464,3.2078,3584.1,3583.3,3.2078]
[1762185926760,0.50248,3583.0,3582.6,3.2078]
[1762185926962,1.25573,3584.4,3582.6,3.2078]
[1762185926963,3.2078,3583.5,3582.6,3.2078]
[1762185927162,3.2078,3583.9,3583.0,3.2078]
[1762185927358,3.2078,3583.4,3582.6,3.2078]
[1762185927554,3.2078,3583.4,3582.5,0.50254]
[1762185927758,3.2078,3584.0,3582.6,3.2078]
[1762185927959,0.50245,3583.2,3582.6,3.2078]
[1762185928160,0.50248,3583.0,3582.1,1.8081]
[1762185928360,0.50248,3583.0,3582.3,3.2078]
[1762185928564,3.2078,3583.6,3582.7,3.2078]
[1762185928761,0.50248,3583.0,3582.3,3.2078]
[1762185929362,3.2078,3583.2,3582.3,3.2078]
[1762185929658,0.5024,3583.6,3582.7,3.2078]
[1762185929659,3.2078,3583.6,3582.7,3.2078]
[1762185929860,3.2078,3583.6,3582.6,3.2078]
[1762185930062,3.71025,3583.2,3582.3,3.2078]
[1762185930365,0.50243,3583.4,3582.8,0.50582301]
[1762185930565,3.2078,3583.6,3583.3,0.50243]
[1762185930766,3.2078,3583.6,3582.8,0.00332301]
[1762185930962,0.50248,3583.0,3582.8,0.00332301]
[1762185931163,0.50258,3582.3,3580.6,3.2078]
[1762185931364,1.25652,3582.1,3580.6,3.2078]
[1762185931666,3.2078,3582.1,3580.6,3.2078]
[1762185931862,0.50273,3581.2,3580.3,0.50285]
[1762185932066,0.00227415,3581.2,3580.6,3.2078]
[1762185932267,3.2078,3582.1,3581.0,3.71055]
[1762185932464,3.2078,3582.1,3581.0,3.2078]
[1762185932669,3.2078,3582.6,3581.4,3.7105]
[1762185932960,0.5027,3581.4,3581.3,0.42075]
[1762185933163,0.00332615,3581.4,3580.3,0.0026527]
[1762185933361,0.50273,3581.2,3580.3,0.0026527]
[1762185933569,0.00332615,3581.4,3580.7,3.2078]
[1762185933866,0.50275,3581.1,3580.7,3.2078]
[1762185934058,0.50281,3580.6,3580.4,0.1038]
[1762185934258,3.2078,3581.1,3580.4,0.1038]
[1762185934660,3.2078,3581.8,3581.2,0.50273]
[1762185934864,3.2078,3583.1,3581.7,3.2078]
[1762185935163,3.2078,3583.1,3582.3,3.2078]
[1762185935364,3.2078,3583.1,3582.4,3.2078]
[1762185935564,3.2078,3583.1,3582.2,0.50258]
[1762185935769,3.21113761,3583.1,3582.4,3.2078]
[1762185935965,3.21113761,3583.1,3582.4,3.71035]
[1762185936175,3.21113761,3583.1,3581.6,1.25666]
[1762185936176,3.2078,3584.0,3583.0,3.2078]
[1762185936372,3.2078,3584.0,3583.4,3.2078]
[1762185936563,1.1018,3585.0,3583.8,3.2078]
[1762185936564,3.2078,3584.4,3583.8,3.2078]
[1762185936769,3.2078,3584.4,3583.4,3.2078]
[1762185937165,0.00342066,3584.4,3583.8,3.71015]
[1762185937372,3.2078,3584.3,3583.4,0.00298342]
[1762185937573,3.2078,3583.7,3583.4,0.00298342]
[1762185938267,0.00342066,3584.4,3583.7,0.50237]
[1762185938467,0.00342066,3584.4,3583.6,3.71018]
[1762185938669,0.00342066,3584.4,3583.6,3.2078]
[1762185939167,3.21122066,3584.4,3583.4,0.00298342]
[1762185939468,3.2078,3584.0,3583.4,0.00298342]
[1762185939970,3.21122066,3584.4,3583.4,0.00298342]
[1762185940169,3.2078,3584.0,3583.4,0.00298342]
[1762185940565,0.00342066,3584.4,3583.6,3.2078]
[1762185940767,0.00342066,3584.4,3584.0,3.2078]
[1762185940973,0.00342066,3584.4,3584.2,0.5023]
[1762185941171,0.00342066,3584.4,3584.0,3.2078]
[1762185941666,3.21122066,3584.4,3583.5,3.2078]
[1762185941970,0.71975332,3584.3,3583.5,3.2078]
[1762185942170,0.72044807,3584.2,3583.5,3.2078]
[1762185942372,3.21122066,3584.4,3583.5,3.2078]
[1762185942575,3.21122066,3584.4,3583.4,0.00298342]
[1762185942576,3.2078,3583.7,3583.4,0.00298342]
[1762185942870,0.72043271,3583.6,3583.4,0.00298342]
[1762185943071,0.72043271,3583.5,3583.4,0.00298342]
[1762185943466,0.72043271,3583.5,3581.8,3.2078]
[1762185943665,3.2078,3583.1,3581.8,3.2078]
[1762185943872,0.50249,3583.0,3582.3,0.50257]
[1762185944072,0.50249,3583.0,3582.2,3.2078]
[1762185944275,3.2078,3583.1,3582.2,3.2078]
[1762185944474,0.50251,3582.8,3582.2,3.21107948]
[1762185944879,0.50254,3582.6,3582.2,0.00327948]
[1762185945077,3.2078,3582.6,3582.2,0.00327948]
[1762185945273,1.397,3583.7,3582.2,0.00327948]
[1762185945473,3.1184766,3584.2,3582.2,0.00327948]
[1762185945474,0.50246,3583.2,3582.5,3.2078]
[1762185945675,0.50248,3583.0,3582.5,3.2078]
[1762185945879,0.5025,3582.9,3582.5,3.2078]
[1762185946378,3.2078,3583.8,3582.5,3.2078]
[1762185946578,0.50243,3583.4,3582.9,3.2078]
[1762185946777,0.50244,3583.3,3582.9,3.2078]
[1762185946972,0.50245,3583.2,3582.6,3.71032]
[1762185947174,3.2078,3583.8,3582.6,3.2078]
[1762185947376,0.50252,3582.7,3582.6,3.2078]
[1762185947574,1.256,3583.6,3582.6,3.2078]
[1762185947575,0.50251,3582.8,3582.6,3.2078]
[1762185948287,0.50251,3582.8,3582.2,0.50586948]
[1762185948480,0.50253,3582.7,3582.2,0.00327948]
[1762185948676,1.25598,3583.7,3582.2,0.00327948]
[1762185948677,3.2078,3583.8,3582.5,3.2078]
[1762185948978,1.397,3584.2,3582.5,3.2078]
[1762185948979,3.2078,3584.2,3582.5,3.2078]
[1762185949186,1.95594212,3584.1,3582.8,0.5025]
[1762185949480,0.50238,3583.8,3583.4,3.2078]
[1762185949680,0.00342066,3584.4,3583.4,3.2078]
[1762185949981,0.5023,3584.3,3583.8,3.71016]
[1762185950281,0.00342066,3584.4,3584.2,3.2078]
[1762185950577,0.00342066,3584.4,3584.2,3.7101]
[1762185950778,0.00342066,3584.4,3584.2,3.2078]
[1762185950985,0.00342066,3584.4,3584.2,3.7101]